[Event "Titled Tuesday Blitz August 3 2021"]
[White "Seo, Jung Min"]
[Black "Shtivelband, Richard"]
[WhiteFideId "1734687"]
[BlackFideId "2017342"]
[WhiteElo "2486"]
[BlackElo "2413"]
[Result "1-0"]
[Round "01"]
[TimeControl "180+1"]
[Date "2021.08.03"]
[WhiteClock "0:00:36"]
[BlackClock "0:00:10"]

1. e4 {[%clk 0:03:00]}  e5 {[%clk 0:02:58]} 2. Nc3 {[%clk 0:03:00]}  Nf6 {[%clk 0:02:58]} 3. g3 {[%clk 0:03:00]}  d5 {[%clk 0:02:57]} 4. exd5 {[%clk 0:03:01]}  Nxd5 {[%clk 0:02:58]} 5. Bg2 {[%clk 0:03:01]}  Nxc3 {[%clk 0:02:58]} 6. bxc3 {[%clk 0:03:01]}  Nc6 {[%clk 0:02:58]} 7. Nf3 {[%clk 0:03:01]}  Bc5 {[%clk 0:02:55]} 8. O-O {[%clk 0:03:01]}  O-O {[%clk 0:02:55]} 9. d3 {[%clk 0:03:01]}  Qf6 {[%clk 0:02:54]} 10. Nd2 {[%clk 0:03:00]}  Bb6 {[%clk 0:02:52]} 11. a4 {[%clk 0:02:58]}  Re8 {[%clk 0:02:45]} 12. Qe2 {[%clk 0:02:57]}  Bf5 {[%clk 0:02:38]} 13. Nc4 {[%clk 0:02:55]}  Bc5 {[%clk 0:02:27]} 14. Rb1 {[%clk 0:02:52]}  b6 {[%clk 0:02:23]} 15. Qf3 {[%clk 0:02:47]}  e4 {[%clk 0:02:23]} 16. dxe4 {[%clk 0:02:45]}  Bxe4 {[%clk 0:02:22]} 17. Qxf6 {[%clk 0:02:44]}  gxf6 {[%clk 0:02:23]} 18. Bf4 {[%clk 0:02:40]}  Bxg2 {[%clk 0:02:19]} 19. Kxg2 {[%clk 0:02:40]}  Ne5 {[%clk 0:02:18]} 20. Bxe5 {[%clk 0:02:34]}  fxe5 {[%clk 0:02:18]} 21. Rfd1 {[%clk 0:02:34]}  Re7 {[%clk 0:02:15]} 22. Rd5 {[%clk 0:02:32]}  f6 {[%clk 0:02:15]} 23. Ne3 {[%clk 0:02:26]}  Bxe3 {[%clk 0:02:13]} 24. fxe3 {[%clk 0:02:26]}  Kf7 {[%clk 0:02:10]} 25. c4 {[%clk 0:02:26]}  c6 {[%clk 0:02:02]} 26. Rd6 {[%clk 0:02:25]}  Rc8 {[%clk 0:02:02]} 27. Rbd1 {[%clk 0:02:25]}  Rcc7 {[%clk 0:02:01]} 28. Kf3 {[%clk 0:02:23]}  f5 {[%clk 0:01:56]} 29. e4 {[%clk 0:02:23]}  fxe4+ {[%clk 0:01:50]} 30. Kxe4 {[%clk 0:02:23]}  Kg7 {[%clk 0:01:43]} 31. R1d3 {[%clk 0:02:11]}  Rc8 {[%clk 0:01:29]} 32. Rd7 {[%clk 0:02:08]}  Re8 {[%clk 0:01:29]} 33. R3d6 {[%clk 0:02:05]}  c5 {[%clk 0:01:28]} 34. Rd5 {[%clk 0:02:03]}  Kf6 {[%clk 0:01:24]} 35. a5 {[%clk 0:01:46]}  h5 {[%clk 0:01:18]} 36. a6 {[%clk 0:01:43]}  h4 {[%clk 0:01:14]} 37. gxh4 {[%clk 0:01:41]}  Rxd7 {[%clk 0:00:49]} 38. Rxd7 {[%clk 0:01:41]}  Rh8 {[%clk 0:00:49]} 39. Rxa7 {[%clk 0:01:26]}  Rxh4+ {[%clk 0:00:48]} 40. Kd5 {[%clk 0:01:19]}  Rxh2 {[%clk 0:00:39]} 41. Rb7 {[%clk 0:01:16]}  Rxc2 {[%clk 0:00:31]} 42. Rxb6+ {[%clk 0:01:15]}  Kf5 {[%clk 0:00:31]} 43. Kxc5 {[%clk 0:01:09]}  Ra2 {[%clk 0:00:19]} 44. Rh6 {[%clk 0:00:57]}  e4 {[%clk 0:00:19]} 45. Kb6 {[%clk 0:00:57]}  e3 {[%clk 0:00:19]} 46. Rh8 {[%clk 0:00:46]}  Ke4 {[%clk 0:00:18]} 47. Re8+ {[%clk 0:00:45]}  Kd4 {[%clk 0:00:18]} 48. c5 {[%clk 0:00:45]}  Rb2+ {[%clk 0:00:17]} 49. Kc7 {[%clk 0:00:42]}  e2 {[%clk 0:00:14]} 50. a7 {[%clk 0:00:38]}  Ra2 {[%clk 0:00:14]} 51. Rxe2 {[%clk 0:00:37]}  Rxa7+ {[%clk 0:00:14]} 52. Kb6 {[%clk 0:00:37]}  Rf7 {[%clk 0:00:11]} 53. c6 {[%clk 0:00:37]}  Kd5 {[%clk 0:00:10]} 54. c7 {[%clk 0:00:36]} 1-0


[Site "https://www.chess.com"]

[Event "Titled Tuesday Blitz August 3 2021"]
[White "Shahade, Gregory"]
[Black "Begunov, Konstantin"]
[WhiteFideId "2009064"]
[BlackFideId "4118510"]
[WhiteElo "2713"]
[BlackElo "2262"]
[Result "1-0"]
[Round "01"]
[TimeControl "180+1"]
[Date "2021.08.03"]
[WhiteClock "0:00:13"]
[BlackClock "0:00:07"]

1. e4 {[%clk 0:03:00]}  c5 {[%clk 0:02:59]} 2. Nf3 {[%clk 0:03:00]}  d6 {[%clk 0:02:59]} 3. d4 {[%clk 0:03:00]}  cxd4 {[%clk 0:03:00]} 4. Nxd4 {[%clk 0:02:58]}  Nf6 {[%clk 0:03:01]} 5. Nc3 {[%clk 0:02:59]}  a6 {[%clk 0:03:01]} 6. Be3 {[%clk 0:02:59]}  Ng4 {[%clk 0:03:01]} 7. Bc1 {[%clk 0:02:58]}  Nc6 {[%clk 0:03:01]} 8. f3 {[%clk 0:02:55]}  Qb6 {[%clk 0:03:00]} 9. fxg4 {[%clk 0:02:23]}  Qxd4 {[%clk 0:03:00]} 10. Bd3 {[%clk 0:02:23]}  e6 {[%clk 0:02:23]} 11. Qe2 {[%clk 0:02:17]}  Ne5 {[%clk 0:02:16]} 12. Be3 {[%clk 0:02:14]}  Qb4 {[%clk 0:02:09]} 13. O-O-O {[%clk 0:02:11]}  Be7 {[%clk 0:02:02]} 14. a3 {[%clk 0:02:05]}  Qa5 {[%clk 0:02:02]} 15. h3 {[%clk 0:01:59]}  Bd7 {[%clk 0:01:59]} 16. Qf2 {[%clk 0:01:58]}  Bd8 {[%clk 0:01:43]} 17. Be2 {[%clk 0:01:54]}  Rc8 {[%clk 0:01:40]} 18. Bd4 {[%clk 0:01:38]}  O-O {[%clk 0:01:31]} 19. Qg3 {[%clk 0:01:30]}  Bc6 {[%clk 0:01:17]} 20. Kb1 {[%clk 0:01:28]}  Bb6 {[%clk 0:01:12]} 21. Bxb6 {[%clk 0:01:08]}  Qxb6 {[%clk 0:01:12]} 22. Rxd6 {[%clk 0:01:07]}  Qc5 {[%clk 0:01:05]} 23. Rhd1 {[%clk 0:01:04]}  b5 {[%clk 0:00:44]} 24. b4 {[%clk 0:01:01]}  Qa7 {[%clk 0:00:14]} 25. Qxe5 {[%clk 0:00:59]}  Ba8 {[%clk 0:00:13]} 26. Kb2 {[%clk 0:00:48]}  Qe3 {[%clk 0:00:13]} 27. R6d3 {[%clk 0:00:38]}  Qf2 {[%clk 0:00:11]} 28. Qg3 {[%clk 0:00:36]}  Qb6 {[%clk 0:00:09]} 29. Qe3 {[%clk 0:00:36]}  Qc7 {[%clk 0:00:09]} 30. Rd7 {[%clk 0:00:36]}  Qe5 {[%clk 0:00:09]} 31. Qd4 {[%clk 0:00:36]}  Qf4 {[%clk 0:00:08]} 32. Rf1 {[%clk 0:00:34]}  Qg3 {[%clk 0:00:08]} 33. Bf3 {[%clk 0:00:24]}  Rc4 {[%clk 0:00:07]} 34. Qd3 {[%clk 0:00:24]}  g5 {[%clk 0:00:06]} 35. Rd1 {[%clk 0:00:18]}  Qe5 {[%clk 0:00:04]} 36. Kb3 {[%clk 0:00:13]}  Rfc8 {[%clk 0:00:03]} 37. Rd8+ {[%clk 0:00:13]}  Kg7 {[%clk 0:00:03]} 38. Rxc8 {[%clk 0:00:13]}  Rxc8 {[%clk 0:00:04]} 39. Qd4 {[%clk 0:00:14]}  Qxd4 {[%clk 0:00:03]} 40. Rxd4 {[%clk 0:00:14]}  Kf6 {[%clk 0:00:03]} 41. Rd6 {[%clk 0:00:13]}  Bc6 {[%clk 0:00:04]} 42. Rxc6 {[%clk 0:00:13]}  Rxc6 {[%clk 0:00:04]} 43. e5+ {[%clk 0:00:13]}  Kxe5 {[%clk 0:00:04]} 44. Bxc6 {[%clk 0:00:14]}  Kf4 {[%clk 0:00:05]} 45. a4 {[%clk 0:00:12]}  bxa4+ {[%clk 0:00:03]} 46. Nxa4 {[%clk 0:00:12]}  Ke5 {[%clk 0:00:03]} 47. Nc5 {[%clk 0:00:13]}  Kd4 {[%clk 0:00:04]} 48. Nxa6 {[%clk 0:00:13]}  e5 {[%clk 0:00:05]} 49. b5 {[%clk 0:00:13]}  e4 {[%clk 0:00:06]} 50. b6 {[%clk 0:00:13]}  e3 {[%clk 0:00:07]} 51. Bb5 {[%clk 0:00:13]}  e2 {[%clk 0:00:07]} 52. Bxe2 {[%clk 0:00:13]} 1-0


[Site "https://www.chess.com"]

[Event "Titled Tuesday Blitz August 3 2021"]
[White "Shapkin, Anatoliy"]
[Black "Silva, Kaua Marques"]
[WhiteFideId "34108332"]
[BlackFideId "22701168"]
[WhiteElo "2223"]
[BlackElo "2013"]
[Result "1-0"]
[Round "01"]
[TimeControl "180+1"]
[Date "2021.08.03"]
[WhiteClock "0:00:04"]
[BlackClock "0:00:01"]

1. d4 {[%clk 0:03:00]}  Nf6 {[%clk 0:02:58]} 2. c4 {[%clk 0:02:56]}  c5 {[%clk 0:02:58]} 3. d5 {[%clk 0:02:55]}  b5 {[%clk 0:02:58]} 4. cxb5 {[%clk 0:02:54]}  e6 {[%clk 0:02:58]} 5. Nc3 {[%clk 0:02:53]}  a6 {[%clk 0:02:55]} 6. e4 {[%clk 0:02:43]}  exd5 {[%clk 0:02:29]} 7. Nxd5 {[%clk 0:02:33]}  axb5 {[%clk 0:02:14]} 8. Bxb5 {[%clk 0:02:27]}  Qa5+ {[%clk 0:02:08]} 9. Nc3 {[%clk 0:02:23]}  Bb7 {[%clk 0:01:46]} 10. Ne2 {[%clk 0:02:04]}  Nxe4 {[%clk 0:01:36]} 11. O-O {[%clk 0:02:02]}  Be7 {[%clk 0:01:33]} 12. Nxe4 {[%clk 0:01:54]}  Qxb5 {[%clk 0:01:18]} 13. Nd6+ {[%clk 0:01:45]}  Bxd6 {[%clk 0:01:17]} 14. Qxd6 {[%clk 0:01:46]}  Qc6 {[%clk 0:01:18]} 15. Qe5+ {[%clk 0:01:40]}  Kf8 {[%clk 0:01:05]} 16. Nf4 {[%clk 0:01:22]}  f6 {[%clk 0:00:54]} 17. Qh5 {[%clk 0:01:14]}  g5 {[%clk 0:00:47]} 18. f3 {[%clk 0:00:45]}  gxf4 {[%clk 0:00:46]} 19. Bxf4 {[%clk 0:00:46]}  Ke7 {[%clk 0:00:23]} 20. Rfe1+ {[%clk 0:00:39]}  Kd8 {[%clk 0:00:23]} 21. Qf7 {[%clk 0:00:40]}  d5 {[%clk 0:00:06]} 22. Re7 {[%clk 0:00:29]}  Nd7 {[%clk 0:00:04]} 23. Rae1 {[%clk 0:00:24]}  Ne5 {[%clk 0:00:03]} 24. Bxe5 {[%clk 0:00:18]}  fxe5 {[%clk 0:00:04]} 25. Rxb7 {[%clk 0:00:11]}  c4 {[%clk 0:00:03]} 26. Rxe5 {[%clk 0:00:06]}  Kc8 {[%clk 0:00:02]} 27. Ree7 {[%clk 0:00:04]}  Rxa2 {[%clk 0:00:01]} 28. Rec7+ {[%clk 0:00:04]} 1-0


[Site "https://www.chess.com"]

[Event "Titled Tuesday Blitz August 3 2021"]
[White "Shkapenko, Pavel"]
[Black "Ferro, Mario"]
[WhiteFideId "4151933"]
[BlackFideId "810290"]
[WhiteElo "2386"]
[BlackElo "2360"]
[Result "1-0"]
[Round "01"]
[TimeControl "180+1"]
[Date "2021.08.03"]
[WhiteClock "0:01:21"]
[BlackClock "0:00:03"]

1. e4 {[%clk 0:03:00]}  c5 {[%clk 0:02:59]} 2. c3 {[%clk 0:03:00]}  d6 {[%clk 0:02:58]} 3. d4 {[%clk 0:03:00]}  Nf6 {[%clk 0:02:59]} 4. Bd3 {[%clk 0:03:00]}  e5 {[%clk 0:02:58]} 5. dxc5 {[%clk 0:02:55]}  dxc5 {[%clk 0:02:56]} 6. Nf3 {[%clk 0:02:55]}  Qc7 {[%clk 0:02:55]} 7. O-O {[%clk 0:02:54]}  Be7 {[%clk 0:02:55]} 8. Na3 {[%clk 0:02:53]}  a6 {[%clk 0:02:53]} 9. Nc4 {[%clk 0:02:53]}  Nc6 {[%clk 0:02:53]} 10. a4 {[%clk 0:02:53]}  b6 {[%clk 0:02:46]} 11. Bg5 {[%clk 0:02:52]}  O-O {[%clk 0:02:42]} 12. Ne3 {[%clk 0:02:52]}  Be6 {[%clk 0:02:37]} 13. Bxf6 {[%clk 0:02:48]}  Bxf6 {[%clk 0:02:37]} 14. Bc4 {[%clk 0:02:48]}  Bxc4 {[%clk 0:02:29]} 15. Nxc4 {[%clk 0:02:48]}  b5 {[%clk 0:02:30]} 16. Ne3 {[%clk 0:02:48]}  Ne7 {[%clk 0:02:22]} 17. axb5 {[%clk 0:02:41]}  axb5 {[%clk 0:02:21]} 18. Qb3 {[%clk 0:02:38]}  Qc6 {[%clk 0:02:12]} 19. Nd5 {[%clk 0:02:17]}  c4 {[%clk 0:02:11]} 20. Nxe7+ {[%clk 0:02:09]}  Bxe7 {[%clk 0:02:09]} 21. Qc2 {[%clk 0:02:09]}  f6 {[%clk 0:01:59]} 22. Rfd1 {[%clk 0:02:06]}  Bc5 {[%clk 0:01:56]} 23. h3 {[%clk 0:01:58]}  Rxa1 {[%clk 0:01:45]} 24. Rxa1 {[%clk 0:01:58]}  Ra8 {[%clk 0:01:46]} 25. Rd1 {[%clk 0:01:52]}  g5 {[%clk 0:01:06]} 26. Nh2 {[%clk 0:01:44]}  Kg7 {[%clk 0:01:04]} 27. Nf1 {[%clk 0:01:42]}  Ra2 {[%clk 0:00:29]} 28. Qd2 {[%clk 0:01:32]}  b4 {[%clk 0:00:23]} 29. Ng3 {[%clk 0:01:30]}  bxc3 {[%clk 0:00:16]} 30. Qxc3 {[%clk 0:01:29]}  Bd4 {[%clk 0:00:13]} 31. Nf5+ {[%clk 0:01:28]}  Kf7 {[%clk 0:00:06]} 32. Qf3 {[%clk 0:01:25]}  Rxb2 {[%clk 0:00:04]} 33. Qh5+ {[%clk 0:01:25]}  Ke6 {[%clk 0:00:02]} 34. Rxd4 {[%clk 0:01:22]}  exd4 {[%clk 0:00:03]} 35. Nxd4+ {[%clk 0:01:21]} 1-0


[Site "https://www.chess.com"]

[Event "Titled Tuesday Blitz August 3 2021"]
[White "Shyaamnikhil P"]
[Black "Tsotsonava, Elene"]
[WhiteFideId "5024218"]
[BlackFideId "13615939"]
[WhiteElo "2300"]
[BlackElo "1847"]
[Result "1-0"]
[Round "01"]
[TimeControl "180+1"]
[Date "2021.08.03"]
[WhiteClock "0:00:16"]
[BlackClock "0:00:01"]

1. e4 {[%clk 0:02:59]}  c5 {[%clk 0:03:00]} 2. Nc3 {[%clk 0:02:57]}  Nc6 {[%clk 0:02:59]} 3. Bb5 {[%clk 0:02:56]}  Nd4 {[%clk 0:02:59]} 4. Nf3 {[%clk 0:02:54]}  g6 {[%clk 0:02:58]} 5. O-O {[%clk 0:02:51]}  Bg7 {[%clk 0:02:58]} 6. Nxd4 {[%clk 0:02:50]}  cxd4 {[%clk 0:02:58]} 7. Ne2 {[%clk 0:02:50]}  Nf6 {[%clk 0:02:53]} 8. Nxd4 {[%clk 0:02:23]}  Nxe4 {[%clk 0:02:50]} 9. Qe2 {[%clk 0:02:23]}  Nc5 {[%clk 0:02:37]} 10. Nf3 {[%clk 0:02:16]}  O-O {[%clk 0:02:35]} 11. d4 {[%clk 0:02:16]}  Ne6 {[%clk 0:02:23]} 12. d5 {[%clk 0:02:14]}  Nc7 {[%clk 0:02:22]} 13. Bc4 {[%clk 0:02:03]}  b5 {[%clk 0:02:14]} 14. Bb3 {[%clk 0:02:00]}  Bb7 {[%clk 0:02:13]} 15. Bg5 {[%clk 0:01:59]}  Nxd5 {[%clk 0:02:04]} 16. Rad1 {[%clk 0:01:28]}  Nf6 {[%clk 0:01:55]} 17. Ne5 {[%clk 0:01:25]}  d6 {[%clk 0:01:51]} 18. Qxb5 {[%clk 0:01:18]}  Qc8 {[%clk 0:01:40]} 19. Bxf6 {[%clk 0:01:07]}  Bxf6 {[%clk 0:01:36]} 20. Nd7 {[%clk 0:01:06]}  Ba6 {[%clk 0:01:35]} 21. Qa4 {[%clk 0:00:46]}  Bxf1 {[%clk 0:01:31]} 22. Kxf1 {[%clk 0:00:40]}  Rd8 {[%clk 0:01:22]} 23. Nxf6+ {[%clk 0:00:33]}  exf6 {[%clk 0:01:23]} 24. Qf4 {[%clk 0:00:27]}  d5 {[%clk 0:01:03]} 25. Qxf6 {[%clk 0:00:25]}  Qc5 {[%clk 0:00:52]} 26. h4 {[%clk 0:00:19]}  Rd6 {[%clk 0:00:49]} 27. Qd4 {[%clk 0:00:18]}  Qb5+ {[%clk 0:00:46]} 28. Kg1 {[%clk 0:00:18]}  a5 {[%clk 0:00:34]} 29. h5 {[%clk 0:00:18]}  a4 {[%clk 0:00:30]} 30. h6 {[%clk 0:00:18]}  f6 {[%clk 0:00:12]} 31. Bxd5+ {[%clk 0:00:18]}  Kf8 {[%clk 0:00:08]} 32. c4 {[%clk 0:00:18]}  Qa6 {[%clk 0:00:04]} 33. Qc5 {[%clk 0:00:16]}  Rc8 {[%clk 0:00:04]} 34. Qa3 {[%clk 0:00:16]}  Ke8 {[%clk 0:00:01]} 35. Re1+ {[%clk 0:00:16]} 1-0


[Site "https://www.chess.com"]

[Event "Titled Tuesday Blitz August 3 2021"]
[White "Siva Mahadevan"]
[Black "Pacheco Lugo, Alejandro Jose"]
[WhiteFideId "25043153"]
[BlackFideId "3903745"]
[WhiteElo "2203"]
[BlackElo "2125"]
[Result "1-0"]
[Round "01"]
[TimeControl "180+1"]
[Date "2021.08.03"]
[WhiteClock "0:00:02"]
[BlackClock "0:00:03"]

1. e4 {[%clk 0:03:00]}  c5 {[%clk 0:02:56]} 2. Nf3 {[%clk 0:03:00]}  d6 {[%clk 0:02:56]} 3. d4 {[%clk 0:03:00]}  cxd4 {[%clk 0:02:57]} 4. Nxd4 {[%clk 0:03:01]}  Nf6 {[%clk 0:02:56]} 5. Nc3 {[%clk 0:03:01]}  a6 {[%clk 0:02:57]} 6. Bg5 {[%clk 0:03:01]}  Nbd7 {[%clk 0:02:55]} 7. Qe2 {[%clk 0:03:00]}  h6 {[%clk 0:02:52]} 8. Bh4 {[%clk 0:02:59]}  e6 {[%clk 0:02:36]} 9. f4 {[%clk 0:02:57]}  Be7 {[%clk 0:02:36]} 10. O-O-O {[%clk 0:02:56]}  Qa5 {[%clk 0:02:36]} 11. Kb1 {[%clk 0:02:54]}  g5 {[%clk 0:02:28]} 12. Nb3 {[%clk 0:02:44]}  Qc7 {[%clk 0:02:24]} 13. fxg5 {[%clk 0:02:43]}  Nh7 {[%clk 0:02:24]} 14. Bg3 {[%clk 0:02:34]}  hxg5 {[%clk 0:02:20]} 15. Qd2 {[%clk 0:02:23]}  Ne5 {[%clk 0:02:18]} 16. Be2 {[%clk 0:02:23]}  Bd7 {[%clk 0:02:13]} 17. Rhf1 {[%clk 0:02:23]}  Nf8 {[%clk 0:02:07]} 18. Nd4 {[%clk 0:02:16]}  Nfg6 {[%clk 0:02:05]} 19. Nf5 {[%clk 0:01:53]}  exf5 {[%clk 0:01:47]} 20. Nd5 {[%clk 0:01:53]}  Qc6 {[%clk 0:01:39]} 21. exf5 {[%clk 0:01:53]}  Nh4 {[%clk 0:01:28]} 22. f6 {[%clk 0:01:42]}  Bf8 {[%clk 0:01:21]} 23. Qxg5 {[%clk 0:01:12]}  Nhg6 {[%clk 0:01:21]} 24. Qd2 {[%clk 0:00:43]}  Be6 {[%clk 0:01:14]} 25. c4 {[%clk 0:00:41]}  Rc8 {[%clk 0:01:06]} 26. Rc1 {[%clk 0:00:33]}  Bh6 {[%clk 0:01:05]} 27. Nf4 {[%clk 0:00:11]}  Qe4+ {[%clk 0:00:36]} 28. Ka1 {[%clk 0:00:10]}  Nxc4 {[%clk 0:00:23]} 29. Bxc4 {[%clk 0:00:10]}  Rxc4 {[%clk 0:00:23]} 30. Rce1 {[%clk 0:00:09]}  Bxf4 {[%clk 0:00:13]} 31. Bxf4 {[%clk 0:00:05]}  Qc6 {[%clk 0:00:10]} 32. Bxd6 {[%clk 0:00:05]}  Rc2 {[%clk 0:00:09]} 33. Qb4 {[%clk 0:00:05]}  Rh4 {[%clk 0:00:05]} 34. Qa3 {[%clk 0:00:04]}  Ra4 {[%clk 0:00:04]} 35. Rxe6+ {[%clk 0:00:02]}  fxe6 {[%clk 0:00:03]} 36. Qe3 {[%clk 0:00:02]} 1-0


[Site "https://www.chess.com"]

[Event "Titled Tuesday Blitz August 3 2021"]
[White "Srihari L R"]
[Black "Manukian, Artak"]
[WhiteFideId "46617116"]
[BlackFideId "13301373"]
[WhiteElo "2121"]
[BlackElo "2391"]
[Result "1-0"]
[Round "01"]
[TimeControl "180+1"]
[Date "2021.08.03"]
[WhiteClock "0:00:48"]
[BlackClock "0:00:09"]

1. d4 {[%clk 0:02:58]}  Nf6 {[%clk 0:02:59]} 2. c4 {[%clk 0:02:58]}  d6 {[%clk 0:02:59]} 3. Nf3 {[%clk 0:02:55]}  g6 {[%clk 0:02:59]} 4. Nc3 {[%clk 0:02:55]}  Bg7 {[%clk 0:03:00]} 5. Bg5 {[%clk 0:02:56]}  O-O {[%clk 0:02:59]} 6. Qd2 {[%clk 0:02:55]}  c5 {[%clk 0:02:59]} 7. d5 {[%clk 0:02:54]}  Na6 {[%clk 0:02:56]} 8. h4 {[%clk 0:02:52]}  h5 {[%clk 0:02:53]} 9. e4 {[%clk 0:02:48]}  Nc7 {[%clk 0:02:46]} 10. Be2 {[%clk 0:02:45]}  a6 {[%clk 0:02:41]} 11. a4 {[%clk 0:02:40]}  Rb8 {[%clk 0:02:39]} 12. Bh6 {[%clk 0:02:31]}  e5 {[%clk 0:01:47]} 13. Bxg7 {[%clk 0:02:19]}  Kxg7 {[%clk 0:01:45]} 14. Ng5 {[%clk 0:02:18]}  Rh8 {[%clk 0:01:41]} 15. f3 {[%clk 0:02:11]}  Nh7 {[%clk 0:01:25]} 16. f4 {[%clk 0:01:56]}  Qf6 {[%clk 0:01:09]} 17. O-O {[%clk 0:01:44]}  Rf8 {[%clk 0:01:02]} 18. fxe5 {[%clk 0:01:28]}  Qxe5 {[%clk 0:00:32]} 19. Nf3 {[%clk 0:01:26]}  Qe7 {[%clk 0:00:31]} 20. e5 {[%clk 0:01:18]}  Bg4 {[%clk 0:00:29]} 21. exd6 {[%clk 0:01:12]}  Qxd6 {[%clk 0:00:30]} 22. Ne4 {[%clk 0:01:11]}  Qd8 {[%clk 0:00:29]} 23. Nxc5 {[%clk 0:01:09]}  b5 {[%clk 0:00:20]} 24. axb5 {[%clk 0:01:03]}  axb5 {[%clk 0:00:21]} 25. d6 {[%clk 0:01:02]}  Ne6 {[%clk 0:00:21]} 26. Nxe6+ {[%clk 0:01:01]}  Bxe6 {[%clk 0:00:19]} 27. c5 {[%clk 0:01:01]}  Bc4 {[%clk 0:00:14]} 28. b4 {[%clk 0:00:56]}  Bxe2 {[%clk 0:00:09]} 29. Qxe2 {[%clk 0:00:55]}  Re8 {[%clk 0:00:10]} 30. Qb2+ {[%clk 0:00:55]}  Qf6 {[%clk 0:00:10]} 31. Nd4 {[%clk 0:00:52]}  Qxh4 {[%clk 0:00:09]} 32. Nf5+ {[%clk 0:00:48]} 1-0


[Site "https://www.chess.com"]

[Event "Titled Tuesday Blitz August 3 2021"]
[White "Swicarz, Maciej"]
[Black "Zubov, Alexander"]
[WhiteFideId "1113585"]
[BlackFideId "14109409"]
[WhiteElo "2199"]
[BlackElo "2740"]
[Result "0-1"]
[Round "01"]
[TimeControl "180+1"]
[Date "2021.08.03"]
[WhiteClock "0:00:01"]
[BlackClock "0:00:20"]

1. c4 {[%clk 0:02:59]}  c5 {[%clk 0:02:59]} 2. Nf3 {[%clk 0:02:58]}  g6 {[%clk 0:02:59]} 3. d4 {[%clk 0:02:55]}  cxd4 {[%clk 0:02:59]} 4. Nxd4 {[%clk 0:02:56]}  Nf6 {[%clk 0:02:56]} 5. Nc3 {[%clk 0:02:55]}  d5 {[%clk 0:02:57]} 6. e3 {[%clk 0:02:47]}  Bg7 {[%clk 0:02:55]} 7. Nf3 {[%clk 0:02:38]}  Qa5 {[%clk 0:02:45]} 8. Bd2 {[%clk 0:02:31]}  dxc4 {[%clk 0:02:44]} 9. Bxc4 {[%clk 0:02:27]}  Qc5 {[%clk 0:02:42]} 10. Bb3 {[%clk 0:02:22]}  O-O {[%clk 0:02:40]} 11. O-O {[%clk 0:02:20]}  Nc6 {[%clk 0:02:39]} 12. Rc1 {[%clk 0:02:18]}  Qh5 {[%clk 0:02:35]} 13. h3 {[%clk 0:02:09]}  Bf5 {[%clk 0:02:00]} 14. Qe2 {[%clk 0:02:04]}  Ne4 {[%clk 0:01:58]} 15. Nxe4 {[%clk 0:01:55]}  Bxe4 {[%clk 0:01:58]} 16. Bc3 {[%clk 0:01:55]}  Bxc3 {[%clk 0:01:36]} 17. Rxc3 {[%clk 0:01:56]}  Rad8 {[%clk 0:01:28]} 18. Rd1 {[%clk 0:01:42]}  Rxd1+ {[%clk 0:01:23]} 19. Bxd1 {[%clk 0:01:43]}  Rd8 {[%clk 0:01:23]} 20. Rc1 {[%clk 0:01:38]}  Qa5 {[%clk 0:01:08]} 21. a3 {[%clk 0:01:37]}  Bxf3 {[%clk 0:00:58]} 22. Qxf3 {[%clk 0:01:36]}  Qd2 {[%clk 0:00:59]} 23. Rb1 {[%clk 0:01:31]}  Ne5 {[%clk 0:00:53]} 24. Qe2 {[%clk 0:01:30]}  g5 {[%clk 0:00:40]} 25. Qxd2 {[%clk 0:01:20]}  Rxd2 {[%clk 0:00:39]} 26. Kf1 {[%clk 0:01:10]}  Nd3 {[%clk 0:00:38]} 27. Be2 {[%clk 0:01:08]}  Nxb2 {[%clk 0:00:38]} 28. Ke1 {[%clk 0:01:03]}  Rc2 {[%clk 0:00:39]} 29. g3 {[%clk 0:00:48]}  b6 {[%clk 0:00:36]} 30. f4 {[%clk 0:00:47]}  gxf4 {[%clk 0:00:36]} 31. gxf4 {[%clk 0:00:47]}  Kg7 {[%clk 0:00:35]} 32. Kf2 {[%clk 0:00:42]}  Nd3+ {[%clk 0:00:30]} 33. Kf3 {[%clk 0:00:42]}  Nc5 {[%clk 0:00:30]} 34. Bb5 {[%clk 0:00:36]}  Ra2 {[%clk 0:00:30]} 35. a4 {[%clk 0:00:34]}  Nxa4 {[%clk 0:00:28]} 36. Bc4 {[%clk 0:00:33]}  Ra3 {[%clk 0:00:21]} 37. Rd1 {[%clk 0:00:30]}  Rc3 {[%clk 0:00:21]} 38. Bb5 {[%clk 0:00:29]}  Nc5 {[%clk 0:00:20]} 39. Ra1 {[%clk 0:00:28]}  a5 {[%clk 0:00:20]} 40. Rb1 {[%clk 0:00:29]}  Rb3 {[%clk 0:00:20]} 41. Rxb3 {[%clk 0:00:28]}  Nxb3 {[%clk 0:00:21]} 42. Ke4 {[%clk 0:00:28]}  Kf6 {[%clk 0:00:21]} 43. Kd3 {[%clk 0:00:27]}  Nc5+ {[%clk 0:00:21]} 44. Kd4 {[%clk 0:00:26]}  e6 {[%clk 0:00:21]} 45. e4 {[%clk 0:00:26]}  Ke7 {[%clk 0:00:21]} 46. e5 {[%clk 0:00:24]}  h6 {[%clk 0:00:21]} 47. Kc4 {[%clk 0:00:23]}  f6 {[%clk 0:00:21]} 48. Kd4 {[%clk 0:00:23]}  fxe5+ {[%clk 0:00:21]} 49. Kxe5 {[%clk 0:00:23]}  a4 {[%clk 0:00:21]} 50. Kd4 {[%clk 0:00:21]}  a3 {[%clk 0:00:22]} 51. Kc3 {[%clk 0:00:21]}  Kf6 {[%clk 0:00:22]} 52. Bc4 {[%clk 0:00:13]}  Kf5 {[%clk 0:00:23]} 53. Kb4 {[%clk 0:00:14]}  Kxf4 {[%clk 0:00:23]} 54. Kxa3 {[%clk 0:00:14]}  e5 {[%clk 0:00:23]} 55. Kb4 {[%clk 0:00:13]}  Ne4 {[%clk 0:00:24]} 56. Bf1 {[%clk 0:00:09]}  Nd6 {[%clk 0:00:24]} 57. Kc3 {[%clk 0:00:08]}  Ke3 {[%clk 0:00:24]} 58. Kc2 {[%clk 0:00:07]}  e4 {[%clk 0:00:24]} 59. Kd1 {[%clk 0:00:06]}  Kf2 {[%clk 0:00:24]} 60. Ba6 {[%clk 0:00:05]}  e3 {[%clk 0:00:25]} 61. Bd3 {[%clk 0:00:04]}  b5 {[%clk 0:00:25]} 62. h4 {[%clk 0:00:02]}  b4 {[%clk 0:00:21]} 63. h5 {[%clk 0:00:02]}  b3 {[%clk 0:00:21]} 64. Ba6 {[%clk 0:00:01]}  Ne4 {[%clk 0:00:20]} 0-1


[Site "https://www.chess.com"]